bitfinex/quotes_SOLUSD_20250625
["timestamp","ask_amount","ask_price","bid_price","bid_amount"]
[1750875967882,26.0,143.48,143.45,6.66479848]
[1750875968059,18.64964886,143.5,143.47,6.66479848]
[1750875968259,18.64964886,143.48,143.47,6.66479848]
[1750875968458,23.85206959,143.48,143.47,6.66479848]
[1750875969055,18.64964886,143.5,143.47,6.66479848]
[1750875969286,18.64964886,143.48,143.47,6.66479848]
[1750875969483,44.64964886,143.51,143.47,6.66479848]
[1750875969804,18.68964886,143.52,143.49,6.66479848]
[1750875969974,5.20224311,143.51,143.49,13.63358515]
[1750875970179,18.68964886,143.52,143.49,13.63358515]
[1750875970406,5.20208673,143.51,143.5,6.66479848]
[1750875971081,0.04,143.52,143.5,6.66479848]
[1750875971703,5.20210326,143.51,143.5,6.66479848]
[1750875972104,5.20210326,143.51,143.5,13.63343959]
[1750875972614,0.04,143.52,143.5,13.63343959]
[1750875977202,0.04,143.52,143.51,6.66479848]
[1750875979512,0.04,143.52,143.51,13.632954]
[1750875982311,0.04,143.52,143.51,100.852954]
[1750875983303,0.04,143.53,143.51,100.852954]
[1750875983304,0.04,143.57,143.52,6.66479848]
[1750875983603,0.04,143.57,143.56,6.96572861]
[1750875984383,0.04,143.57,143.56,13.63052709]
[1750875985882,0.04,143.57,143.56,100.85052709]
[1750875991412,0.04,143.57,143.56,87.22]
[1750875992421,0.04,143.57,143.56,100.85052709]
[1750875994007,0.04,143.57,143.56,94.18572861]
[1750875994921,0.04,143.57,143.56,100.85052709]
[1750875997918,0.04,143.57,143.56,87.22]
[1750875998704,0.04,143.57,143.56,94.18572861]
[1750875999710,0.04,143.57,143.56,87.22]
[1750876002520,0.04,143.57,143.55,87.22]
[1750876002828,0.04,143.57,143.54,13.63125499]
[1750876002829,6.70479848,143.57,143.54,87.22]
[1750876003130,18.64964886,143.56,143.54,87.22]
[1750876003308,25.31444734,143.56,143.54,87.22]
[1750876003900,25.31444734,143.56,143.52,6.66479848]
[1750876004103,18.64964886,143.56,143.52,13.63222549]
[1750876008623,18.64964886,143.56,143.51,6.96815552]
[1750876008805,18.64964886,143.56,143.52,6.66479848]
[1750876009500,23.8312287,143.56,143.52,6.66479848]
[1750876010110,23.8312287,143.56,143.53,6.66479848]
[1750876010313,18.64964886,143.56,143.53,6.66479848]
[1750876010712,18.68964886,143.57,143.54,13.63149765]
[1750876011127,0.04,143.57,143.55,6.66479848]
[1750876011305,0.04,143.57,143.56,6.66479848]
[1750876012229,0.04,143.57,143.56,13.63052709]
[1750876014410,0.04,143.57,143.56,100.85052709]
[1750876017432,0.04,143.57,143.56,94.18572861]
[1750876020435,0.04,143.57,143.56,6.96572861]
[1750876021512,0.04,143.57,143.56,13.63052709]
[1750876021839,5.23948639,143.57,143.54,6.66479848]
[1750876022015,0.04,143.57,143.54,6.66479848]
[1750876023219,0.04,143.57,143.54,13.63120761]
[1750876023930,6.2,143.56,143.54,13.63120761]
[1750876025497,18.64964886,143.55,143.53,13.63178795]
[1750876025657,18.64964886,143.55,143.53,6.96698947]
[1750876026915,18.64964886,143.55,143.53,6.66479848]
[1750876027822,18.64964886,143.55,143.54,6.96669917]
[1750876029143,0.04,143.57,143.54,13.63149765]
[1750876029348,5.20581881,143.56,143.55,6.66479848]
[1750876029844,5.20581881,143.56,143.55,13.63101234]
[1750876030846,5.20581881,143.56,143.55,6.96621386]
[1750876031435,5.20581881,143.56,143.55,13.63101234]
[1750876031630,0.04,143.57,143.55,13.63101234]
[1750876031855,0.04,143.57,143.56,6.66479848]
[1750876032070,0.04,143.57,143.56,100.93052709]
[1750876032252,0.04,143.57,143.56,13.63052709]
[1750876033923,0.04,143.57,143.56,100.93052709]
[1750876036452,0.04,143.57,143.56,101.62709995]
[1750876036641,5.20029451,143.62,143.56,119.04142148]
[1750876036841,18.68964886,143.63,143.61,6.66479848]
[1750876037042,5.20037431,143.62,143.61,6.66479848]
[1750876037243,5.20037431,143.62,143.6,6.66479848]
[1750876037437,18.68964886,143.63,143.6,6.66479848]
[1750876037643,5.19896876,143.62,143.59,6.66479848]
[1750876037843,5.19896876,143.61,143.59,6.66479848]
[1750876038042,18.68964886,143.63,143.59,6.66479848]
[1750876038249,5.19837937,143.62,143.59,6.66479848]
[1750876038556,5.19837937,143.61,143.6,6.9637883]
[1750876038856,5.19816504,143.61,143.6,6.9637883]
[1750876040758,5.19816504,143.61,143.59,6.66479848]
[1750876040956,6.2,143.62,143.59,6.66479848]
[1750876041151,25.31444734,143.6,143.52,87.3]
[1750876041352,25.31444734,143.57,143.53,13.63198304]
[1750876041665,18.64964886,143.57,143.53,13.63198304]
[1750876041851,18.64964886,143.57,143.54,6.66479848]
[1750876042961,18.64964886,143.57,143.53,13.63198304]
[1750876046966,18.64964886,143.57,143.53,100.93198304]
[1750876047348,18.64964886,143.57,143.54,13.63134189]
[1750876051977,18.64964886,143.57,143.54,6.66479848]
[1750876052861,18.64964886,143.57,143.54,93.96479848]
[1750876053864,18.64964886,143.57,143.54,87.3]
[1750876053865,6.66479848,143.56,143.54,87.3]
[1750876054070,6.66479848,143.56,143.52,87.32]
[1750876054071,18.64964886,143.54,143.52,87.32]
[1750876054368,30.51603845,143.53,143.52,0.02]
[1750876055272,38.75963845,143.53,143.52,0.02]
[1750876055989,45.72682301,143.53,143.52,0.02]
[1750876058853,38.75963845,143.53,143.52,0.02]
[1750876059053,23.85123997,143.53,143.52,0.02]
[1750876059275,30.51603845,143.53,143.52,0.02]
[1750876060362,23.85123997,143.53,143.52,0.02]
[1750876061280,30.51603845,143.53,143.52,0.02]
[1750876063051,5.20159111,143.54,143.52,87.32]
[1750876063166,23.83853265,143.56,143.52,93.98479848]
[1750876063364,23.83803255,143.56,143.53,6.66479848]
[1750876063697,18.64964886,143.56,143.53,6.66479848]
[1750876064393,18.64964886,143.56,143.52,93.98479848]
[1750876065385,18.64964886,143.56,143.53,6.96718456]
[1750876066272,23.83852611,143.56,143.53,6.96718456]
[1750876066590,18.64964886,143.56,143.53,6.96718456]
[1750876067798,18.64964886,143.56,143.53,94.26718456]
[1750876067986,18.64964886,143.56,143.53,100.93198304]
[1750876068193,23.83810011,143.56,143.53,100.93198304]
[1750876070807,23.83810011,143.56,143.53,94.26718456]
[1750876071908,18.64964886,143.56,143.53,94.26718456]
[1750876073916,6.2,143.55,143.53,94.26718456]
[1750876074507,6.2,143.55,143.53,100.93198304]
[1750876074688,5.18803302,143.56,143.53,100.93198304]
[1750876074887,11.8528315,143.57,143.53,100.93198304]
[1750876075181,6.66479848,143.57,143.53,100.93198304]
[1750876076317,25.31444734,143.56,143.53,87.3]
[1750876076625,25.31444734,143.54,143.53,87.3]
[1750876076790,30.50331861,143.54,143.52,0.02]
[1750876076988,30.50331861,143.53,143.52,0.02]
[1750876078284,37.47050317,143.53,143.52,0.02]
[1750876078891,43.67050317,143.53,143.52,0.02]
[1750876080788,36.70331861,143.53,143.52,0.02]
[1750876081082,43.67050317,143.53,143.52,0.02]
[1750876084327,43.81266474,143.53,143.52,0.02]
[1750876086212,43.67050317,143.53,143.52,0.02]
[1750876086422,43.81266474,143.53,143.52,0.02]
[1750876086923,43.82020819,143.53,143.52,0.02]
[1750876087219,1.6245,143.48,143.47,0.02]
[1750876087420,32.13536206,143.48,143.47,0.02]
[1750876088919,39.10497454,143.48,143.47,0.02]
[1750876091215,30.81567606,143.48,143.47,0.02]
[1750876091421,37.48047454,143.48,143.47,0.02]
[1750876092505,23.84606358,143.48,143.47,0.02]
[1750876092709,25.31444734,143.48,143.47,0.02]
[1750876100637,18.64964886,143.48,143.47,0.02]
[1750876100826,25.31444734,143.48,143.47,0.02]
[1750876101324,32.28405982,143.48,143.47,0.02]
[1750876101527,37.47177692,143.48,143.47,0.02]
[1750876101727,66.35393849,143.48,143.47,0.02]
[1750876101935,44.79181043,143.47,143.46,0.02]
[1750876102233,56.64432601,143.47,143.46,0.02]
[1750876102839,62.84432601,143.47,143.46,0.02]
[1750876103251,66.40346845,143.47,143.46,0.02]
[1750876103907,54.0383652,143.47,143.41,0.02]
[1750876104109,54.0383652,143.47,143.38,0.02]
[1750876104110,44.64964886,143.39,143.38,0.02]
[1750876104325,51.45660891,143.39,143.38,0.02]
[1750876105760,58.43059593,143.39,143.38,0.02]
[1750876108465,44.64964886,143.39,143.38,0.02]
[1750876108645,6.66479848,143.41,143.38,0.02]
[1750876108846,6.66479848,143.39,143.38,0.02]
[1750876109565,6.80696005,143.39,143.38,0.02]
[1750876109736,51.45660891,143.39,143.38,0.02]
[1750876110955,80.23660891,143.39,143.38,0.02]
[1750876113438,18.64964886,143.39,143.38,0.02]
[1750876113643,25.31444734,143.39,143.38,0.02]
[1750876114548,18.64964886,143.39,143.38,0.02]
[1750876116063,25.31444734,143.39,143.38,0.02]
[1750876117065,25.45660891,143.39,143.38,0.02]
[1750876117272,51.45660891,143.39,143.38,0.02]
[1750876117648,58.43059593,143.39,143.38,0.02]
[1750876120374,18.64964886,143.39,143.38,0.02]
[1750876120587,25.31444734,143.39,143.38,0.02]
[1750876123553,18.64964886,143.39,143.38,0.02]
[1750876140886,24.84964886,143.39,143.38,0.02]
[1750876141889,6.2,143.39,143.38,93.98479848]
[1750876142092,5.19135736,143.41,143.38,93.98479848]
[1750876142093,23.84353561,143.43,143.38,93.98479848]
[1750876142411,5.19363912,143.44,143.42,6.66479848]
[1750876142704,0.04,143.47,143.42,6.66479848]
[1750876142705,5.23471309,143.47,143.43,6.66479848]
[1750876143004,0.04,143.47,143.45,6.66479848]
[1750876143381,0.04,143.47,143.44,6.97155605]
[1750876143574,0.04,143.47,143.45,6.66479848]
[1750876144005,0.04,143.47,143.45,13.63578399]
[1750876144507,6.70479848,143.47,143.43,87.3]
[1750876144801,25.31444734,143.45,143.43,87.3]
[1750876145796,6.2,143.44,143.43,87.3]
[1750876146275,6.2,143.44,143.43,94.27204211]
[1750876149797,0.04,143.47,143.43,100.93684059]
[1750876149997,0.04,143.47,143.43,94.27204211]
[1750876150301,5.23600855,143.47,143.44,6.66479848]
[1750876150619,18.64964886,143.46,143.43,100.93684059]
[1750876154684,0.04,143.47,143.44,13.63626341]
[1750876154997,0.04,143.47,143.46,6.66479848]
[1750876155193,0.04,143.47,143.46,93.96479848]
[1750876156803,0.04,143.47,143.46,100.93538261]
[1750876157028,0.04,143.47,143.46,94.27058413]
[1750876158828,0.04,143.47,143.46,87.3]
[1750876159495,0.04,143.47,143.46,94.27058413]
[1750876159929,0.04,143.47,143.46,87.3]
[1750876161714,25.35444734,143.47,143.46,87.3]
[1750876162827,6.70479848,143.47,143.46,87.3]
[1750876163028,12.90479848,143.47,143.46,87.3]
[1750876164400,12.90479848,143.47,143.43,100.93657251]
[1750876165211,18.64964886,143.46,143.43,93.96479848]
[1750876165400,18.64964886,143.46,143.43,94.27198741]
[1750876166628,12.90479848,143.47,143.43,94.27198741]
[1750876166826,18.64964886,143.46,143.43,94.27198741]
[1750876167833,18.64964886,143.46,143.43,100.93678589]
[1750876169918,18.64964886,143.46,143.43,94.27198741]
[1750876170616,13.21019224,143.47,143.43,94.27198741]
[1750876170805,12.90479848,143.47,143.43,94.27198741]
[1750876175442,18.64964886,143.46,143.43,94.27198741]
[1750876175625,18.64964886,143.46,143.43,87.3]
[1750876177748,6.66479848,143.45,143.43,87.3]
[1750876179017,18.64964886,143.46,143.43,87.3]
[1750876179213,5.19663022,143.45,143.43,87.3]
[1750876179641,25.31444734,143.46,143.43,87.3]
[1750876179815,5.19769116,143.45,143.43,87.3]
[1750876180018,32.28510225,143.46,143.43,87.3]
[1750876180219,5.19796877,143.45,143.43,87.3]
[1750876180418,32.28510225,143.46,143.43,87.3]
[1750876180622,5.19947264,143.45,143.43,87.3]
[1750876180942,32.28510225,143.46,143.43,87.3]
[1750876181241,5.19947264,143.45,143.43,87.3]
[1750876181542,32.28510225,143.46,143.43,87.3]
[1750876181850,5.20148878,143.45,143.43,87.3]
[1750876182058,32.28510225,143.46,143.43,87.3]
[1750876182249,5.20173167,143.45,143.43,87.3]
[1750876182546,32.28510225,143.46,143.43,87.3]
[1750876182728,5.20345373,143.45,143.43,87.3]
[1750876182929,32.28510225,143.46,143.43,87.3]
[1750876183236,5.20343305,143.45,143.43,87.3]
[1750876183438,5.2057915,143.44,143.43,87.3]
[1750876197861,23.85544036,143.44,143.43,87.3]
[1750876198028,18.64964886,143.43,143.4,87.3]
[1750876198234,5.21159686,143.42,143.4,87.3]
[1750876198461,5.21159686,143.41,143.4,87.3]
[1750876200762,5.21159686,143.41,143.4,100.93829917]
[1750876201057,5.21037635,143.41,143.4,100.93829917]
[1750876201355,4.37447812,143.41,143.4,100.93829917]
[1750876201659,18.64964886,143.43,143.4,100.93829917]
[1750876202364,18.64964886,143.43,143.4,94.27350069]
[1750876202861,6.2,143.42,143.4,87.3]
[1750876203052,18.64964886,143.41,143.4,87.3]
[1750876203256,25.31444734,143.41,143.38,87.32]
[1750876203436,13.17260925,143.42,143.38,87.32]
[1750876203643,6.66479848,143.39,143.38,0.02]
[1750876204532,6.80696005,143.39,143.38,0.02]
[1750876204742,13.78094707,143.39,143.38,0.02]
[1750876205261,6.66479848,143.39,143.38,0.02]
[1750876206263,18.64964886,143.39,143.38,0.02]
[1750876211266,13.9864,143.42,143.38,87.32]
[1750876211456,18.64964886,143.41,143.38,87.32]
[1750876211659,25.31444734,143.41,143.38,87.32]
[1750876212458,25.31444734,143.41,143.38,94.29435026]
[1750876212655,6.2,143.42,143.4,6.66479848]
[1750876212863,6.66479848,143.43,143.39,6.66479848]
[1750876213048,18.64964886,143.42,143.39,6.66479848]
[1750876213681,25.31444734,143.44,143.39,6.66479848]
[1750876213850,18.64964886,143.42,143.4,6.66479848]
[1750876214256,23.84775678,143.44,143.4,6.66479848]
[1750876214461,18.64964886,143.42,143.4,13.63801108]
[1750876214846,23.84805102,143.44,143.4,13.63801108]
[1750876215047,18.64964886,143.42,143.4,13.63801108]
[1750876215590,25.31444734,143.44,143.4,13.63801108]
[1750876216268,18.64964886,143.44,143.4,13.63801108]
[1750876216476,25.31444734,143.44,143.4,13.63801108]
[1750876217599,18.64964886,143.44,143.4,13.63801108]
[1750876218697,18.64964886,143.44,143.4,100.93801108]
[1750876218865,18.64964886,143.44,143.41,6.66479848]
[1750876219070,18.64964886,143.44,143.41,93.96479848]
[1750876219586,18.64964886,143.44,143.41,94.27294243]
[1750876220163,25.31444734,143.44,143.41,94.27294243]
[1750876220372,25.31444734,143.44,143.41,87.3]
[1750876220673,6.66479848,143.43,143.41,87.3]
[1750876220879,6.66479848,143.42,143.41,87.3]
[1750876221200,11.86655382,143.42,143.41,87.3]
[1750876221994,5.20175534,143.42,143.41,87.3]
[1750876223206,37.48873091,143.42,143.41,87.3]
[1750876224402,37.48873091,143.42,143.38,100.95903631]
[1750876224606,32.28697557,143.42,143.38,100.95903631]
[1750876224806,32.28697557,143.42,143.38,94.29423783]
[1750876225106,25.31444734,143.42,143.38,100.95903631]
[1750876225992,18.64964886,143.42,143.38,100.95903631]
[1750876226209,25.31444734,143.42,143.38,94.29423783]
[1750876227005,32.28716073,143.42,143.38,87.32]
[1750876227181,23.85403096,143.41,143.38,87.32]
[1750876227385,25.31444734,143.39,143.38,87.32]
[1750876227615,25.31444734,143.39,143.38,0.02]
[1750876227980,30.66031472,143.39,143.38,0.02]
[1750876228290,23.85335467,143.39,143.38,0.02]
[1750876231513,63.63430174,143.39,143.38,0.02]
[1750876232603,39.15710174,143.39,143.38,0.02]
[1750876232807,0.14216157,143.38,143.35,0.02]
[1750876233123,18.64964886,143.33,143.32,0.02]
[1750876233325,37.49505958,143.33,143.32,0.02]
[1750876233533,32.29135377,143.33,143.32,0.02]
[1750876233694,30.50465238,143.33,143.32,0.02]
[1750876233886,37.62372038,143.33,143.32,0.02]
[1750876234093,30.64681395,143.33,143.32,0.02]
[1750876235487,25.45660891,143.33,143.32,0.02]
[1750876236510,18.79181043,143.33,143.32,0.02]
[1750876236713,25.45660891,143.33,143.32,0.02]
[1750876238321,40.73041534,143.33,143.32,0.02]
[1750876238629,45.9118277,143.33,143.32,0.02]
[1750876238806,18.64964886,143.29,143.27,87.3]
[1750876239006,18.64964886,143.29,143.24,94.2811091]
[1750876239007,6.66479848,143.28,143.24,94.2811091]
[1750876239223,18.64964886,143.26,143.24,94.2811091]
[1750876239596,18.64964886,143.27,143.24,100.94590758]
[1750876239792,18.64964886,143.27,143.26,0.02]
[1750876240699,6.66479848,143.27,143.26,0.02]
[1750876244721,13.78678834,143.27,143.26,0.02]
[1750876245217,6.80696005,143.27,143.26,0.02]
[1750876245588,0.14216157,143.27,143.26,0.02]
[1750876245796,6.66479848,143.28,143.26,0.02]
[1750876246217,6.66479848,143.27,143.26,0.02]
[1750876248508,6.66479848,143.28,143.26,0.02]
[1750876249742,25.62858328,143.29,143.26,0.02]
[1750876249946,6.66479848,143.27,143.26,0.02]
[1750876250108,25.31444734,143.27,143.26,0.02]
[1750876250644,18.64964886,143.27,143.26,0.02]
[1750876250935,25.31444734,143.27,143.26,0.02]
[1750876252035,18.64964886,143.27,143.26,0.02]
[1750876252234,25.31444734,143.27,143.26,0.02]
[1750876252736,18.64964886,143.27,143.26,0.02]
[1750876252941,25.31444734,143.27,143.26,0.02]
[1750876253248,18.64964886,143.27,143.26,0.02]
[1750876253441,25.31444734,143.27,143.26,0.02]
[1750876253830,18.64964886,143.27,143.26,0.02]
[1750876254030,25.31444734,143.27,143.26,0.02]
[1750876254649,18.64964886,143.27,143.26,0.02]
[1750876254870,25.31444734,143.27,143.26,0.02]
[1750876257026,18.64964886,143.27,143.26,0.02]
[1750876257227,25.31444734,143.27,143.26,0.02]
[1750876257428,58.4364372,143.27,143.26,0.02]
[1750876257733,51.45660891,143.27,143.26,0.02]
[1750876258450,58.4364372,143.27,143.26,0.02]
[1750876258828,44.79181043,143.27,143.26,0.02]
[1750876259146,58.4364372,143.27,143.26,0.02]
[1750876260778,51.45660891,143.27,143.26,0.02]
[1750876261455,18.64964886,143.27,143.26,0.02]
[1750876261640,26.0,143.29,143.26,6.68479848]
[1750876261641,18.64964886,143.29,143.26,6.68479848]
[1750876261956,32.26,143.31,143.26,0.02]
[1750876262171,6.66479848,143.3,143.26,93.98479848]
[1750876262376,18.64964886,143.29,143.27,6.97982829]
[1750876262882,18.64964886,143.3,143.27,6.97982829]
[1750876263045,25.31444734,143.3,143.27,6.97982829]
[1750876263673,25.31444734,143.3,143.26,94.30012441]
[1750876263846,25.31444734,143.3,143.26,100.96492289]
[1750876265949,51.31444734,143.27,143.26,0.02]
[1750876266154,51.45660891,143.27,143.26,0.02]
[1750876266651,51.31444734,143.27,143.26,0.02]
[1750876267374,58.29427563,143.27,143.26,0.02]
[1750876267574,63.45706617,143.27,143.26,0.02]
[1750876268355,56.79226769,143.27,143.26,0.02]
[1750876269066,63.45706617,143.27,143.26,0.02]
[1750876269268,18.64964886,143.27,143.26,0.02]
[1750876269674,18.64964886,143.27,143.26,6.68479848]
[1750876269869,18.64964886,143.27,143.26,0.02]
[1750876271956,18.64964886,143.28,143.26,6.68479848]
[1750876272356,32.29286478,143.3,143.26,0.02]
[1750876272593,18.64964886,143.28,143.26,87.32]
[1750876273082,18.64964886,143.28,143.26,94.30012706]
[1750876273784,23.82757867,143.28,143.26,100.96492554]
[1750876273997,18.64964886,143.28,143.26,100.96492554]
[1750876274161,23.82757867,143.28,143.26,100.96492554]
[1750876274359,6.66479848,143.3,143.26,100.96492554]
[1750876274558,18.64964886,143.28,143.26,100.96492554]
[1750876274762,6.66479848,143.3,143.27,6.66479848]
[1750876274763,18.64964886,143.3,143.27,6.66479848]
[1750876274967,18.64964886,143.3,143.28,6.66479848]
[1750876275179,18.64964886,143.3,143.28,13.644099]
[1750876275882,18.64964886,143.32,143.28,100.944099]
[1750876276179,18.64964886,143.3,143.29,6.66479848]
[1750876276474,18.64964886,143.32,143.29,100.94365255]
[1750876276678,5.19228428,143.31,143.3,6.66479848]
[1750876276854,5.19228428,143.31,143.3,93.96479848]
[1750876277059,18.64964886,143.33,143.3,93.96479848]
[1750876277259,18.64964886,143.34,143.31,6.66479848]
[1750876277485,5.1957958,143.33,143.3,93.96479848]
[1750876277666,5.1957958,143.32,143.3,93.96479848]
[1750876277870,18.64964886,143.34,143.3,93.96479848]
[1750876278070,5.2001091,143.33,143.3,93.96479848]
[1750876278264,5.2001091,143.32,143.31,6.97788012]
[1750876278472,5.2001091,143.32,143.31,13.6426786]
[1750876278886,18.64964886,143.34,143.31,13.6426786]
[1750876279070,5.20073606,143.33,143.31,13.6426786]
[1750876279386,18.64964886,143.35,143.32,6.66479848]
[1750876279687,5.20020309,143.34,143.33,6.66479848]
[1750876279901,18.64964886,143.37,143.33,6.66479848]
[1750876280062,5.20078674,143.36,143.34,6.66479848]
[1750876280261,5.20078674,143.35,143.34,6.66479848]
[1750876280579,5.20078674,143.35,143.34,13.64121818]
[1750876281159,5.20078674,143.36,143.34,13.64121818]
[1750876281360,0.04,143.38,143.35,6.66479848]
[1750876281573,5.19647083,143.37,143.35,93.96479848]
[1750876281781,0.04,143.38,143.36,6.66479848]
[1750876281969,5.1976085,143.37,143.35,93.96479848]
[1750876282169,5.19474481,143.37,143.35,93.96479848]
[1750876282593,0.04,143.38,143.35,93.96479848]
[1750876282886,0.04,143.38,143.35,100.94046425]
[1750876283276,5.23248182,143.38,143.35,100.94046425]
[1750876284290,0.04,143.38,143.35,100.94046425]
[1750876286610,0.04,143.38,143.35,87.3]
[1750876286771,6.70479848,143.38,143.35,87.3]
[1750876287695,13.67955916,143.38,143.35,87.3]
[1750876288588,6.66479848,143.37,143.35,87.3]
[1750876289111,6.70479848,143.38,143.35,87.3]
[1750876289401,13.67928393,143.38,143.35,87.3]
[1750876290575,0.04,143.38,143.36,6.66479848]
[1750876290776,0.04,143.38,143.37,6.66479848]
[1750876290971,0.04,143.38,143.36,6.66479848]
[1750876292475,0.04,143.38,143.36,13.64022902]
[1750876293895,0.04,143.38,143.36,6.97543054]
[1750876294098,0.04,143.38,143.36,13.64022902]
[1750876294289,0.04,143.38,143.37,6.66479848]
[1750876294802,0.04,143.38,143.37,13.63975837]
[1750876294980,0.04,143.38,143.37,6.97495989]
[1750876295299,0.04,143.38,143.37,13.63975837]
[1750876295478,0.04,143.38,143.37,100.93975837]
[1750876296284,0.04,143.38,143.37,94.27495989]
[1750876296500,0.04,143.38,143.37,100.93975837]
[1750876303085,0.04,143.38,143.37,87.3]
[1750876305887,0.04,143.38,143.37,94.27495989]
[1750876306509,0.04,143.38,143.37,87.3]
[1750876308818,0.04,143.38,143.37,100.93975837]
[1750876316994,0.04,143.38,143.37,87.3]
[1750876317292,18.68964886,143.38,143.37,87.3]
[1750876318807,32.32894466,143.38,143.34,87.3]
[1750876319009,18.64964886,143.36,143.34,87.3]
[1750876319214,25.31444734,143.36,143.32,94.27720598]
[1750876319428,6.66479848,143.36,143.32,94.27720598]
[1750876319798,13.64032438,143.36,143.32,87.3]
[1750876319997,18.64964886,143.34,143.31,100.94251212]
[1750876320638,6.66479848,143.36,143.31,100.94251212]
[1750876320925,25.31444734,143.37,143.32,6.66479848]
[1750876321092,5.19075938,143.36,143.33,6.66479848]
[1750876321290,25.31444734,143.37,143.33,6.66479848]
[1750876321515,25.31444734,143.37,143.31,94.27771364]
[1750876321516,5.19352961,143.36,143.31,94.27771364]
[1750876321696,25.31444734,143.37,143.32,13.64175441]
[1750876321896,5.1935008,143.36,143.32,13.64175441]
[1750876322206,6.66479848,143.36,143.32,6.97695593]
[1750876322415,25.31444734,143.37,143.32,13.64175441]
[1750876322719,5.19464214,143.36,143.32,13.64175441]
[1750876322898,6.66479848,143.36,143.32,13.64175441]
[1750876323107,6.2,143.36,143.32,13.64175441]
[1750876323307,12.86479848,143.36,143.32,13.64175441]
[1750876323834,25.31444734,143.35,143.31,100.94246122]
[1750876324124,18.64964886,143.32,143.31,87.3]
[1750876324324,18.64964886,143.32,143.29,94.27874718]
[1750876324632,18.64964886,143.32,143.29,94.27883308]
[1750876324934,18.64964886,143.32,143.29,87.3]
[1750876325096,1.6474,143.34,143.29,6.66479848]
[1750876325097,8.31219848,143.34,143.29,6.66479848]
[1750876325298,26.96184734,143.34,143.29,6.66479848]
[1750876325602,20.29704886,143.34,143.3,6.66479848]
[1750876325806,26.96184734,143.34,143.3,6.9782808]
[1750876325992,18.64964886,143.32,143.3,6.9782808]
[1750876326390,26.96184734,143.34,143.3,6.9782808]
[1750876327218,32.15345749,143.34,143.3,6.9782808]
[1750876327916,5.19161015,143.34,143.31,6.66479848]
[1750876328124,18.64964886,143.33,143.3,13.64307928]
[1750876328823,18.64964886,143.33,143.3,6.9782808]
[1750876330302,18.64964886,143.3,143.26,0.02]
[1750876330503,6.66479848,143.29,143.26,7.0001756]
[1750876331310,18.64964886,143.28,143.26,0.02]
[1750876331925,18.64964886,143.28,143.26,7.00019944]
[1750876332097,6.66479848,143.3,143.26,7.00019944]
[1750876332302,18.64964886,143.28,143.26,0.02]
[1750876333027,6.66479848,143.3,143.26,0.02]
[1750876334312,32.29256162,143.31,143.26,6.68479848]
[1750876334924,6.66479848,143.3,143.26,6.68479848]
[1750876335515,25.31444734,143.31,143.26,6.68479848]
[1750876336222,25.31444734,143.31,143.27,6.97982829]
[1750876336728,18.64964886,143.31,143.29,6.66479848]
[1750876337040,18.64964886,143.33,143.3,6.66479848]
[1750876337202,18.64964886,143.33,143.29,87.3]
[1750876337407,18.64964886,143.33,143.3,6.66479848]
[1750876337905,6.66479848,143.31,143.29,87.3]
[1750876338112,6.66479848,143.3,143.29,87.3]
[1750876339034,25.31444734,143.31,143.29,87.3]
[1750876339239,18.64964886,143.31,143.29,100.94364047]
[1750876339440,32.29157232,143.33,143.29,100.94364047]
[1750876341722,18.64964886,143.31,143.29,94.27884199]
[1750876342933,25.31444734,143.33,143.29,94.27884199]
[1750876343418,25.31444734,143.33,143.29,100.94364047]
[1750876344238,18.64964886,143.33,143.3,6.66479848]
[1750876344820,18.64964886,143.33,143.3,13.64293318]
[1750876345854,25.31444734,143.33,143.29,100.94355408]
[1750876346539,18.64964886,143.33,143.29,100.94355408]
[1750876350752,18.64964886,143.33,143.3,6.66479848]
[1750876351946,18.64964886,143.33,143.3,13.64290142]
[1750876352529,18.64964886,143.33,143.31,6.66479848]
[1750876352735,18.64964886,143.35,143.31,6.66479848]
[1750876353038,18.64964886,143.35,143.31,93.96479848]
[1750876353469,25.31444734,143.35,143.31,100.9425359]
[1750876353870,6.2,143.36,143.34,6.66479848]
[1750876354044,18.68964886,143.38,143.34,93.96479848]
[1750876355135,18.68964886,143.38,143.34,100.94092398]